fUST/lending_fUST_20250207
["ID","MTS","AMOUNT","RATE_DAILY","PERIOD"]
[352056898,1738914643732,-158.864146,0.00013698,2]
[352056899,1738914643741,-500.0,0.00013698,2]
[352056900,1738914643751,-158.864146,0.00013698,2]
[352056901,1738914643760,-158.864146,0.00013698,2]
[352056902,1738914643770,-158.864146,0.00013698,2]
[352056903,1738914643780,-158.864146,0.00013698,2]
[352056904,1738914643789,-500.0,0.00013698,2]
[352056905,1738914643800,-158.864146,0.00013698,2]
[352056906,1738914643810,-500.9237029,0.00013698,2]
[352056907,1738914643819,-500.0,0.00013698,2]
[352056908,1738914643828,-500.0,0.00013698,2]
[352056909,1738914643838,-500.0,0.00013698,2]
[352056910,1738914643847,-500.0,0.00013698,2]
[352056911,1738914643856,-500.0,0.00013698,2]
[352056912,1738914643866,-500.0,0.00013698,2]
[352056913,1738914643877,-500.0,0.00013698,2]
[352056914,1738914643887,-500.0,0.00013698,2]
[352056915,1738914643896,-500.0,0.00013698,2]
[352056916,1738914643906,-559.40783653,0.00013698,2]
[352056917,1738914643915,-500.0,0.00013698,2]
[352056918,1738914643924,-500.90006595,0.00013698,2]
[352056919,1738914643934,-189.70723605,0.00013698,2]
[352056920,1738914643944,-500.0,0.00013698,2]
[352056921,1738914643954,-500.0,0.00013698,2]
[352056922,1738914643963,-500.59774551,0.00013698,2]
[352056923,1738914643973,-500.0,0.00013698,2]
[352056924,1738914643983,-508.19807742,0.00013698,2]
[352056925,1738914643992,-500.0,0.00013698,2]
[352056926,1738914644002,-259.49477,0.00013698,2]
[352056927,1738914644013,-5481.884166,0.00013698,2]
[352056928,1738914644023,-5481.884166,0.00013698,2]
[352056929,1738914644032,-5481.884166,0.00013698,2]
[352056930,1738914644130,-5481.884166,0.00013698,2]
[352056931,1738914644140,-8550.79,0.00013698,2]
[352056932,1738914644150,-5481.884166,0.00013698,2]
[352056933,1738914644159,-8550.79,0.00013698,2]
[352056934,1738914644169,-5481.884166,0.00013698,2]
[352056935,1738914644178,-8550.79,0.00013698,2]
[352056936,1738914644188,-5481.884166,0.00013698,2]
[352056937,1738914644197,-8550.79,0.00013698,2]
[352056938,1738914644207,-500.0,0.00013698,2]
[352056939,1738914644216,-8550.79,0.00013698,2]
[352056940,1738914644226,-5481.884166,0.00013698,2]
[352056941,1738914644235,-8550.79,0.00013698,2]
[352056942,1738914644245,-5481.884166,0.00013698,2]
[352056943,1738914644255,-8550.79,0.00013698,2]
[352056944,1738914644264,-5481.884166,0.00013698,2]
[352056945,1738914644273,-500.43488389,0.00013698,2]
[352056946,1738914644283,-502.6411773,0.00013698,2]
[352056947,1738914644293,-8550.79,0.00013698,2]
[352056948,1738914644303,-5481.884166,0.00013698,2]
[352056949,1738914644312,-8550.79,0.00013698,2]
[352056950,1738914644322,-5481.884166,0.00013698,2]
[352056951,1738914644332,-8550.79,0.00013698,2]
[352056952,1738914644342,-8550.79,0.00013698,2]
[352056953,1738914644351,-5481.884166,0.00013698,2]
[352056954,1738914644362,-8550.79,0.00013698,2]
[352056955,1738914644371,-5481.884166,0.00013698,2]
[352056956,1738914644382,-8550.79,0.00013698,2]
[352056957,1738914644392,-5481.884166,0.00013698,2]
[352056958,1738914644402,-8550.79,0.00013698,2]
[352056959,1738914644413,-5481.884166,0.00013698,2]
[352056960,1738914644422,-8550.79,0.00013698,2]
[352056961,1738914644432,-5481.884166,0.00013698,2]
[352056962,1738914644443,-8550.79,0.00013698,2]
[352056963,1738914644453,-5481.884166,0.00013698,2]
[352056964,1738914644462,-8550.79,0.00013698,2]
[352056965,1738914644471,-8550.79,0.00013698,2]
[352056966,1738914644480,-5481.884166,0.00013698,2]
[352056967,1738914644489,-8550.79,0.00013698,2]
[352056968,1738914644498,-500.0,0.00013698,2]
[352056969,1738914644509,-8550.79,0.00013698,2]
[352056970,1738914644520,-7500.32772096,0.00013698,2]
[352056971,1738914644731,-1050.46227904,0.00013698,2]
[352056972,1738914644741,-1259.53772096,0.00013698,2]
[352056976,1738914645399,-560.93225175,0.00012649,2]
[352056977,1738914645409,-500.0,0.00012649,2]
[352056978,1738914645419,-500.0,0.00012649,2]
[352056979,1738914645428,-500.0,0.00012649,2]
[352056980,1738914645438,-500.0,0.00012649,2]
[352056981,1738914645447,-500.0,0.00012649,2]
[352056982,1738914645457,-500.0,0.00012649,2]
[352056983,1738914645467,-121.88531564,0.00012649,2]
[352056984,1738914645501,-17.37519879,0.00012649,2]
[352056985,1738914645565,-245.23022211,0.00012649,2]
[352056986,1738914645574,-500.0,0.00012649,2]
[352056987,1738914645583,-500.0,0.00012649,2]
[352056988,1738914645695,-560.93225175,0.00012649,2]
[352056989,1738914645706,-309.16171092,0.00012649,2]
[352056990,1738914645716,-500.0,0.00012649,2]
[352056991,1738914645725,-408.69553101,0.00012649,2]
[352056992,1738914645738,-91.30446899,0.00012649,2]
[352056993,1738914645747,-500.0,0.00012649,2]
[352056994,1738914645757,-500.0,0.00012649,2]
[352056995,1738914645767,-500.0,0.00012649,2]
[352056996,1738914645776,-406.46081508,0.00012649,2]
[352056997,1738914645787,-500.0,0.00012649,2]
[352056998,1738914645798,-300.0,0.00012649,2]
[352056999,1738914645808,-500.0,0.00012649,2]
[352057000,1738914645817,-560.93225175,0.00012649,2]
[352057001,1738914645827,-500.0,0.00012649,2]
[352057002,1738914645837,-500.0,0.00012649,2]
[352057003,1738914645847,-560.93225175,0.00012649,2]
[352057004,1738914645857,-500.0,0.00012649,2]
[352057005,1738914645867,-500.0,0.00012649,2]
[352057006,1738914645877,-560.93225175,0.00012649,2]
[352057007,1738914645887,-700.0,0.00013068,2]
[352057008,1738914645897,-7291.25227904,0.00013698,2]
[352057009,1738914645907,-5481.884156,0.00013698,2]
[352057011,1738914645917,-598.49659424,0.00013698,2]
[352057013,1738914645926,-8550.79,0.00013698,2]
[352057015,1738914645935,-8550.99479178,0.00013698,2]
[352057016,1738914645945,-504.30853412,0.00013698,2]
[352057017,1738914645954,-500.0,0.00013698,2]
[352057018,1738914645963,-151.0,0.00013698,2]
[352057020,1738914645973,-500.0,0.00013698,2]
[352057021,1738914645982,-151.0,0.00013698,2]
[352057022,1738914645991,-151.0,0.00013698,2]
[352057023,1738914646000,-151.0,0.00013698,2]
[352057024,1738914646009,-151.0,0.00013698,2]
[352057025,1738914646019,-152.353619,0.00013698,2]
[352057026,1738914646028,-500.0,0.00013698,2]
[352057027,1738914646037,-500.0,0.00013698,2]
[352057028,1738914646046,-725.67,0.00013698,2]
[352057029,1738914646056,-500.0,0.00013698,2]
[352057030,1738914646065,-853.53,0.00013698,2]
[352057031,1738914646074,-500.0,0.00013698,2]
[352057032,1738914646083,-501.36327129,0.00013698,2]
[352057033,1738914646093,-506.34203787,0.00013698,2]
[352057034,1738914646102,-500.89695592,0.00013698,2]
[352057035,1738914646112,-560.94054763,0.00013698,2]
[352057036,1738914646121,-502.85249426,0.00013698,2]
[352057037,1738914646130,-500.0,0.00013698,2]
[352057038,1738914646139,-518.38541079,0.00013698,2]
[352057039,1738914646149,-500.0,0.00013698,2]
[352057040,1738914646158,-878.77296,0.00013698,2]
[352057041,1738914646168,-878.77296,0.00013698,2]
[352057042,1738914646177,-878.77296,0.00013698,2]
[352057043,1738914646187,-878.77296,0.00013698,2]
[352057044,1738914646197,-878.77296,0.00013698,2]
[352057045,1738914646206,-878.77296,0.00013698,2]
[352057047,1738914646216,-878.77296,0.00013698,2]
[352057049,1738914646225,-878.77296,0.00013698,2]
[352057051,1738914646235,-878.77296,0.00013698,2]
[352057052,1738914646244,-878.77296,0.00013698,2]
[352057053,1738914646254,-500.0,0.00013698,2]
[352057055,1738914646264,-878.77296,0.00013698,2]
[352057057,1738914646273,-878.77296,0.00013698,2]
[352057058,1738914646283,-203.491339,0.00013699,2]
[352057059,1738914646293,-271.171855,0.00013699,2]
[352057060,1738914646307,-151.0,0.00013699,2]
[352057062,1738914646317,-151.0,0.00013699,2]
[352057064,1738914646327,-151.0,0.00013699,2]
[352057066,1738914646337,-151.0,0.00013699,2]
[352057068,1738914646346,-151.0,0.00013699,2]
[352057070,1738914646356,-151.0,0.00013699,2]
[352057071,1738914646365,-151.0,0.00013699,2]
[352057073,1738914646375,-151.0,0.00013699,2]
[352057075,1738914646385,-151.0,0.00013699,2]
[352057077,1738914646394,-226.59296923,0.00013699,2]
[352057079,1738914646403,-3450.81096,0.00013699,2]
[352057081,1738914646413,-3450.81096,0.00013699,2]
[352057083,1738914646422,-3450.81096,0.00013699,2]
[352057085,1738914646432,-3450.81096,0.00013699,2]
[352057086,1738914646442,-3450.81096,0.00013699,2]
[352057087,1738914646451,-3450.81096,0.00013699,2]
[352057088,1738914646460,-3450.81096,0.00013699,2]
[352057090,1738914646470,-3450.81096,0.00013699,2]
[352057092,1738914646479,-3450.81096,0.00013699,2]
[352057094,1738914646488,-3450.81096,0.00013699,2]
[352057096,1738914646498,-3450.81096,0.00013699,2]
[352057097,1738914646507,-3450.81096,0.00013699,2]
[352057098,1738914646517,-3450.81096,0.00013699,2]
[352057099,1738914646527,-3450.81096,0.00013699,2]
[352057100,1738914646536,-3450.81096,0.00013699,2]
[352057101,1738914646549,-3450.81096,0.00013699,2]
[352057102,1738914646558,-3450.81096,0.00013699,2]
[352057103,1738914646568,-3450.81096,0.00013699,2]
[352057104,1738914646578,-3450.81096,0.00013699,2]
[352057105,1738914646587,-3450.810968,0.00013699,2]
[352057106,1738914646601,-151.0,0.00013699,2]
[352057107,1738914646611,-248.026809,0.00013699,2]
[352057108,1738914646620,-153.958287,0.00013699,2]
[352057109,1738914646630,-153.958291,0.00013699,2]
[352057110,1738914646642,-500.0,0.00013699,2]
[352057111,1738914646651,-500.0,0.00013699,2]
[352057112,1738914646661,-500.0,0.00013699,2]
[352057113,1738914646671,-500.0,0.00013699,2]
[352057114,1738914646680,-500.0,0.00013699,2]
[352057115,1738914646691,-500.0,0.00013699,2]
[352057116,1738914646700,-209.98947937,0.00013699,2]
[352057117,1738914646710,-500.0,0.00013699,2]
[352057118,1738914646719,-500.0,0.00013699,2]
[352057119,1738914646729,-500.0,0.00013699,2]
[352057120,1738914646738,-500.0,0.00013699,2]
[352057121,1738914646748,-500.0,0.00013699,2]
[352057122,1738914646758,-648.54807687,0.00013699,2]
[352057123,1738914646768,-500.0,0.00013699,2]
[352057124,1738914646777,-500.0,0.00013699,2]
[352057125,1738914646788,-500.0,0.00013699,2]
[352057126,1738914646798,-500.0,0.00013699,2]
[352057127,1738914646808,-500.0,0.00013699,2]
[352057128,1738914646818,-500.0,0.00013699,2]
[352057129,1738914646827,-500.0,0.00013699,2]
[352057130,1738914646836,-500.0,0.00013699,2]
[352057131,1738914646845,-500.0,0.00013699,2]
[352057132,1738914646855,-500.0,0.00013699,2]
[352057133,1738914646864,-500.0,0.00013699,2]
[352057134,1738914646874,-500.0,0.00013699,2]
[352057135,1738914646885,-500.0,0.00013699,2]
[352057136,1738914646895,-500.0,0.00013699,2]
[352057137,1738914646905,-500.0,0.00013699,2]
[352057138,1738914646916,-485.48076871,0.00013699,2]
[352057139,1738914646926,-500.0,0.00013699,2]
[352057140,1738914646936,-151.0,0.000137,2]
[352057141,1738914646946,-151.0,0.000137,2]
[352057142,1738914646956,-151.0,0.000137,2]
[352057143,1738914646966,-151.0,0.000137,2]
[352057144,1738914646976,-151.0,0.000137,2]
[352057145,1738914646986,-151.0,0.000137,2]
[352057146,1738914646997,-151.0,0.000137,2]
[352057147,1738914647007,-151.0,0.000137,2]
[352057148,1738914647016,-151.0,0.000137,2]
[352057149,1738914647026,-151.0,0.000137,2]
[352057150,1738914647035,-151.0,0.000137,2]
[352057151,1738914647045,-151.0,0.000137,2]
[352057152,1738914647055,-151.0,0.000137,2]
[352057153,1738914647065,-162.08577339,0.000137,2]
[352057154,1738914647075,-162.08577339,0.000137,2]
[352057155,1738914647086,-162.08577339,0.000137,2]
[352057156,1738914647096,-162.08577339,0.000137,2]
[352057157,1738914647105,-162.08577339,0.000137,2]
[352057158,1738914647115,-162.08577339,0.000137,2]
[352057159,1738914647123,-162.08577339,0.000137,2]
[352057160,1738914647133,-162.08577339,0.000137,2]
[352057161,1738914647142,-162.08577339,0.000137,2]
[352057162,1738914647151,-162.08577339,0.000137,2]
[352057163,1738914647160,-162.08577339,0.000137,2]
[352057164,1738914647169,-162.08,0.000137,2]
[352057165,1738914647178,-166.15,0.000137,2]
[352057166,1738914647188,-166.15,0.000137,2]
[352057167,1738914647197,-151.0,0.000138,2]
[352057168,1738914647207,-151.0,0.000138,2]
[352057169,1738914647217,-151.0,0.000138,2]
[352057170,1738914647226,-151.0,0.000138,2]
[352057171,1738914647235,-151.0,0.000138,2]
[352057172,1738914647247,-1383.2659841,0.00013832,2]
[352057173,1738914647257,-151.0,0.00013834,2]
[352057174,1738914647267,-160.0,0.00013834,2]
[352057175,1738914647277,-500.0,0.00013835,2]
[352057176,1738914647286,-500.0,0.00013835,2]
[352057177,1738914647295,-500.0,0.00013835,2]
[352057178,1738914647383,-500.0,0.00013835,2]
[352057179,1738914647393,-500.0,0.00013835,2]
[352057180,1738914647403,-500.0,0.00013835,2]
[352057181,1738914647412,-500.0,0.00013835,2]
[352057182,1738914647421,-500.0,0.00013835,2]
[352057183,1738914647431,-509.85916292,0.00013835,2]
[352057184,1738914647440,-592.62,0.00013835,2]
[352057185,1738914647450,-151.0,0.00013835,2]
[352057186,1738914647459,-500.0,0.00013835,2]
[352057187,1738914647469,-503.17402534,0.00013835,2]
[352057188,1738914647479,-500.0,0.00013835,2]
[352057189,1738914647488,-502.60644992,0.00013835,2]
[352057190,1738914647498,-500.0,0.00013835,2]
[352057191,1738914647507,-500.0,0.00013835,2]
[352057192,1738914647517,-645.58259757,0.00013835,2]
[352057193,1738914647527,-500.0,0.00013835,2]
[352057194,1738914647537,-500.0,0.00013835,2]
[352057195,1738914647549,-500.0,0.00013835,2]
[352057196,1738914647559,-500.0,0.00013835,2]
[352057197,1738914647569,-500.0,0.00013835,2]
[352057198,1738914647579,-500.0,0.00013835,2]
[352057199,1738914647590,-503.97383068,0.00013835,2]
[352057200,1738914647606,-503.06887511,0.00013835,2]
[352057201,1738914647615,-501.40573999,0.00013835,2]
[352057202,1738914647626,-518.36,0.00013835,2]
[352057203,1738914647636,-500.0,0.00013835,2]
[352057204,1738914647647,-500.0,0.00013835,2]
[352057205,1738914647656,-500.0,0.00013835,2]
[352057206,1738914647665,-500.0,0.00013835,2]
[352057207,1738914647675,-500.0,0.00013835,2]
[352057208,1738914647685,-502.50537753,0.00013835,2]
[352057209,1738914647695,-500.0,0.00013835,2]
[352057210,1738914647705,-496.5,0.00013835,2]
[352057211,1738914647714,-500.0,0.00013835,2]
[352057212,1738914647724,-500.0,0.00013835,2]
[352057213,1738914647733,-500.0,0.00013835,2]
[352057214,1738914647745,-500.0,0.00013835,2]
[352057215,1738914647758,-502.28993732,0.00013835,2]
[352057216,1738914647768,-500.0,0.00013835,2]
[352057217,1738914647778,-156.42,0.00013835,2]
[352057218,1738914647787,-500.0,0.00013835,2]
[352057219,1738914647800,-500.0,0.00013835,2]
[352057220,1738914647811,-203.461442,0.00013835,2]
[352057221,1738914647821,-500.0,0.00013835,2]
[352057222,1738914647830,-500.0,0.00013835,2]
[352057223,1738914647840,-503.08594097,0.00013835,2]
[352057224,1738914647849,-500.0,0.00013835,2]
[352057225,1738914647859,-500.0,0.00013835,2]
[352057226,1738914647869,-501.93296659,0.00013835,2]
[352057227,1738914647880,-500.0,0.00013835,2]
[352057228,1738914647890,-500.0,0.00013835,2]
[352057229,1738914647901,-500.0,0.00013835,2]
[352057230,1738914647911,-151.0,0.00013835,2]
[352057231,1738914647921,-151.0,0.00013835,2]
[352057232,1738914647932,-500.0,0.00013835,2]
[352057233,1738914647942,-151.0,0.00013835,2]
[352057234,1738914647951,-500.60587709,0.00013835,2]
[352057235,1738914647960,-500.64684637,0.00013835,2]
[352057236,1738914647970,-500.0,0.00013835,2]
[352057237,1738914647979,-525.54985248,0.00013835,2]
[352057238,1738914647989,-500.0,0.00013835,2]
[352057239,1738914647998,-500.0,0.00013835,2]
[352057240,1738914648008,-502.42261787,0.00013835,2]
[352057241,1738914648018,-500.16828391,0.00013835,2]
[352057242,1738914648027,-598.18,0.00013835,2]
[352057243,1738914648036,-500.0,0.00013835,2]
[352057244,1738914648046,-500.0,0.00013835,2]
[352057245,1738914648062,-497.11613746,0.00013835,2]
[352057246,1738914648072,-501.86280008,0.00013835,2]
[352057247,1738914648081,-500.0,0.00013835,2]
[352057248,1738914648091,-501.10268527,0.00013835,2]
[352057249,1738914648100,-502.8229965,0.00013835,2]
[352057250,1738914648110,-504.15901071,0.00013835,2]
[352057251,1738914648120,-501.95420132,0.00013835,2]
[352057252,1738914648130,-500.0,0.00013835,2]
[352057253,1738914648140,-500.0,0.00013835,2]
[352057254,1738914648149,-500.0,0.00013835,2]
[352057255,1738914648160,-437.95877082,0.00013835,2]
[352057256,1738914648170,-500.0,0.00013835,2]
[352057257,1738914648180,-500.0,0.00013835,2]
[352057258,1738914648190,-500.0,0.00013835,2]
[352057259,1738914648200,-500.0,0.00013835,2]
[352057260,1738914648210,-500.0,0.00013835,2]
[352057261,1738914648219,-500.0,0.00013835,2]
[352057262,1738914648229,-500.0,0.00013835,2]
[352057263,1738914648239,-500.0,0.00013835,2]
[352057264,1738914648249,-506.19296581,0.00013835,2]
[352057265,1738914648259,-206.67116412,0.00013835,2]
[352057266,1738914648270,-500.0,0.00013835,2]
[352057267,1738914648280,-501.28366464,0.00013835,2]
[352057268,1738914648289,-500.0,0.00013835,2]
[352057269,1738914648301,-500.0,0.00013835,2]
[352057270,1738914648311,-500.0,0.00013835,2]
[352057271,1738914648321,-456.19893555,0.00013835,2]
[352057272,1738914648333,-500.0,0.00013835,2]
[352057273,1738914648343,-500.0,0.00013835,2]
[352057274,1738914648354,-500.0,0.00013835,2]
[352057275,1738914648365,-500.0,0.00013835,2]
[352057276,1738914648376,-500.0,0.00013835,2]
[352057277,1738914648387,-500.0,0.00013835,2]
[352057278,1738914648398,-500.0,0.00013835,2]
[352057279,1738914648409,-502.51639516,0.00013835,2]
[352057280,1738914648419,-500.0,0.00013835,2]
[352057281,1738914648428,-500.0,0.00013835,2]
[352057282,1738914648438,-500.0,0.00013835,2]
[352057283,1738914648448,-501.68337438,0.00013835,2]
[352057284,1738914648458,-523.23929299,0.00013835,2]
[352057285,1738914648469,-501.52272076,0.00013835,2]
[352057286,1738914648479,-500.0,0.00013835,2]
[352057287,1738914648489,-501.5621144,0.00013835,2]
[352057288,1738914648499,-564.41,0.00013835,2]
[352057289,1738914648510,-500.0,0.00013835,2]
[352057290,1738914648520,-500.0,0.00013835,2]
[352057291,1738914648529,-500.0,0.00013835,2]
[352057292,1738914648539,-500.0,0.00013835,2]
[352057293,1738914648550,-500.0,0.00013835,2]
[352057294,1738914648560,-525.92290262,0.00013835,2]
[352057295,1738914648571,-500.0,0.00013835,2]
[352057296,1738914648581,-501.98363984,0.00013835,2]
[352057297,1738914648592,-500.0,0.00013835,2]
[352057298,1738914648604,-500.0,0.00013835,2]
[352057299,1738914648615,-500.0,0.00013835,2]
[352057300,1738914648625,-500.0,0.00013835,2]
[352057301,1738914648635,-504.62353445,0.00013835,2]
[352057302,1738914648647,-500.0,0.00013835,2]
[352057303,1738914648656,-500.0,0.00013835,2]
[352057304,1738914648666,-503.17844166,0.00013835,2]
[352057305,1738914648677,-500.0,0.00013835,2]
[352057306,1738914648687,-500.0,0.00013835,2]
[352057307,1738914648697,-500.0,0.00013835,2]
[352057308,1738914648709,-502.86286128,0.00013835,2]
[352057309,1738914648719,-501.45354141,0.00013835,2]
[352057310,1738914648730,-500.0,0.00013835,2]
[352057311,1738914648741,-502.5807354,0.00013835,2]
[352057312,1738914648751,-346.60732509,0.00013835,2]
[352057313,1738914648762,-503.34594976,0.00013835,2]
[352057314,1738914648772,-500.0,0.00013835,2]
[352057315,1738914648782,-501.57390669,0.00013835,2]
[352057316,1738914648791,-481.31445863,0.00013835,2]
[352057317,1738914648804,-500.0,0.00013835,2]
[352057318,1738914648814,-500.0,0.00013835,2]
[352057319,1738914648825,-500.0,0.00013835,2]
[352057320,1738914648835,-500.0,0.00013835,2]
[352057321,1738914648845,-501.60152064,0.00013835,2]
[352057322,1738914648856,-500.0,0.00013835,2]
[352057323,1738914648866,-500.0,0.00013835,2]
[352057324,1738914648876,-501.61657855,0.00013835,2]
[352057325,1738914648887,-500.70924835,0.00013835,2]
[352057326,1738914648897,-501.04245603,0.00013835,2]
[352057327,1738914648908,-500.0,0.00013835,2]
[352057328,1738914648919,-501.67668975,0.00013835,2]
[352057329,1738914648930,-500.0,0.00013835,2]
[352057330,1738914649016,-502.3641626,0.00013835,2]
[352057331,1738914649027,-500.0,0.00013835,2]
[352057332,1738914649038,-500.0,0.00013835,2]
[352057333,1738914649051,-501.83620821,0.00013835,2]
[352057334,1738914649061,-500.0,0.00013835,2]
[352057335,1738914649071,-502.56812229,0.00013835,2]
[352057336,1738914649082,-500.0,0.00013835,2]
[352057337,1738914649093,-501.15657117,0.00013835,2]
[352057338,1738914649103,-502.69388645,0.00013835,2]
[352057339,1738914649114,-566.73,0.00013835,2]
[352057340,1738914649125,-502.6445118,0.00013835,2]
[352057341,1738914649135,-501.74331293,0.00013835,2]
[352057342,1738914649146,-500.0,0.00013835,2]
[352057343,1738914649156,-501.05141148,0.00013835,2]
[352057344,1738914649167,-500.0,0.00013835,2]
[352057345,1738914649178,-563.63,0.00013835,2]
[352057346,1738914649188,-502.84192554,0.00013835,2]
[352057347,1738914649199,-500.0,0.00013835,2]
[352057348,1738914649210,-502.2724614,0.00013835,2]
[352057349,1738914649220,-500.0,0.00013835,2]
[352057350,1738914649231,-500.0,0.00013835,2]
[352057351,1738914649242,-556.03,0.00013835,2]
[352057352,1738914649253,-500.0,0.00013835,2]
[352057353,1738914649264,-500.0,0.00013835,2]
[352057354,1738914649275,-500.0,0.00013835,2]
[352057355,1738914649285,-501.81065237,0.00013835,2]
[352057356,1738914649296,-558.94,0.00013835,2]
[352057357,1738914649308,-3524.7,0.00013835,2]
[352057358,1738914649319,-1000.03,0.00013835,2]
[352057359,1738914649330,-500.0,0.00013835,2]
[352057360,1738914649341,-549.4,0.00013835,2]
[352057361,1738914649351,-500.0,0.00013835,2]
[352057362,1738914649362,-500.0,0.00013835,2]
[352057363,1738914649373,-500.0,0.00013835,2]
[352057364,1738914649383,-500.0,0.00013835,2]
[352057365,1738914649394,-500.0,0.00013835,2]
[352057366,1738914649404,-500.0,0.00013835,2]
[352057367,1738914649414,-4483.01,0.00013835,2]
[352057368,1738914649424,-500.0,0.00013835,2]
[352057369,1738914649433,-500.0,0.00013835,2]
[352057370,1738914649443,-540.65222141,0.00013835,2]
[352057371,1738914649453,-500.0,0.00013835,2]
[352057372,1738914649463,-500.0,0.00013835,2]
[352057373,1738914649473,-500.0,0.00013835,2]
[352057374,1738914649483,-227.85561075,0.00013835,2]
[352057375,1738914649493,-654.45,0.00013835,2]
[352057376,1738914649503,-500.0,0.00013835,2]
[352057377,1738914649512,-500.0,0.00013835,2]
[352057378,1738914649522,-500.0,0.00013835,2]
[352057379,1738914649532,-500.0,0.00013835,2]
[352057380,1738914649542,-500.0,0.00013835,2]
[352057381,1738914649552,-503.06762347,0.00013835,2]
[352057382,1738914649562,-500.0,0.00013835,2]
[352057383,1738914649572,-843.91,0.00013835,2]
[352057384,1738914649581,-503.58731381,0.00013835,2]
[352057385,1738914649591,-500.0,0.00013835,2]
[352057386,1738914649602,-500.0,0.00013835,2]
[352057387,1738914649612,-500.0,0.00013835,2]
[352057388,1738914649621,-503.76536497,0.00013835,2]
[352057389,1738914649631,-500.0,0.00013835,2]
[352057390,1738914649640,-1462.32,0.00013835,2]
[352057391,1738914649650,-500.0,0.00013835,2]
[352057392,1738914649660,-500.0,0.00013835,2]
[352057393,1738914649670,-500.0,0.00013835,2]
[352057394,1738914649681,-500.0,0.00013835,2]
[352057395,1738914649691,-504.38097172,0.00013835,2]
[352057396,1738914649701,-500.0,0.00013835,2]
[352057397,1738914649711,-170.66966448,0.00013835,2]
[352057398,1738914649720,-565.56,0.00013835,2]
[352057399,1738914649730,-500.0,0.00013835,2]
[352057400,1738914649740,-503.48057497,0.00013835,2]
[352057401,1738914649749,-500.0,0.00013835,2]
[352057402,1738914649759,-500.0,0.00013835,2]
[352057403,1738914649769,-306.2375125,0.00013835,2]
[352057404,1738914649779,-500.0,0.00013835,2]
[352057405,1738914649789,-719.2,0.00013835,2]
[352057406,1738914649801,-2931.8,0.00013835,2]
[352057407,1738914649810,-501.00492072,0.00013835,2]
[352057408,1738914649820,-500.0,0.00013835,2]
[352057409,1738914649830,-500.0,0.00013835,2]
[352057410,1738914649840,-500.0,0.00013835,2]
[352057411,1738914649850,-500.0,0.00013835,2]
[352057412,1738914649860,-643.85573182,0.00013835,2]
[352057413,1738914649869,-500.0,0.00013835,2]
[352057414,1738914649879,-500.0,0.00013835,2]
[352057415,1738914649889,-500.0,0.00013835,2]
[352057416,1738914649899,-504.38943593,0.00013835,2]
[352057417,1738914649909,-500.0,0.00013835,2]
[352057418,1738914649919,-500.0,0.00013835,2]
[352057419,1738914649929,-500.0,0.00013835,2]
[352057420,1738914649940,-500.0,0.00013835,2]
[352057421,1738914649950,-500.0,0.00013835,2]
[352057422,1738914649960,-500.0,0.00013835,2]
[352057423,1738914649969,-358.39100061,0.00013835,2]
[352057424,1738914649979,-500.0,0.00013835,2]
[352057425,1738914649989,-500.0,0.00013835,2]